[Event "Titled Tuesday Blitz February 21 Early 2023"]
[White "Koridze, Lile"]
[Black "The_Sherman_Variation"]
[WhiteFideId "13612514"]
[WhiteElo "2191"]
[BlackElo "2513"]
[Result "1-0"]
[Round "07"]
[TimeControl "180+2"]
[Date "2023.02.21"]
[WhiteClock "0:00:27"]
[BlackClock "0:00:14"]

1. d4 {[%clk 0:03:00]}  Nf6 {[%clk 0:02:56]} 2. c4 {[%clk 0:03:01]}  c5 {[%clk 0:02:56]} 3. d5 {[%clk 0:03:01]}  b5 {[%clk 0:02:57]} 4. cxb5 {[%clk 0:03:01]}  e6 {[%clk 0:02:57]} 5. Nc3 {[%clk 0:03:01]}  exd5 {[%clk 0:02:58]} 6. Nxd5 {[%clk 0:03:02]}  Bb7 {[%clk 0:02:58]} 7. Nc3 {[%clk 0:03:01]}  d5 {[%clk 0:02:59]} 8. e3 {[%clk 0:03:01]}  d4 {[%clk 0:02:59]} 9. exd4 {[%clk 0:03:01]}  cxd4 {[%clk 0:02:59]} 10. Nce2 {[%clk 0:03:01]}  Bc5 {[%clk 0:02:40]} 11. a3 {[%clk 0:02:48]}  d3 {[%clk 0:02:32]} 12. b4 {[%clk 0:02:39]}  Bb6 {[%clk 0:02:30]} 13. Ng3 {[%clk 0:02:34]}  Qe7+ {[%clk 0:02:20]} 14. Kd2 {[%clk 0:02:32]}  Bxf2 {[%clk 0:02:14]} 15. Bxd3 {[%clk 0:02:29]}  O-O {[%clk 0:02:10]} 16. Nf3 {[%clk 0:02:22]}  Rc8 {[%clk 0:01:56]} 17. Qe2 {[%clk 0:02:01]}  Qc7 {[%clk 0:01:40]} 18. Bb2 {[%clk 0:01:56]}  Qf4+ {[%clk 0:01:31]} 19. Kd1 {[%clk 0:01:54]}  Ng4 {[%clk 0:01:31]} 20. Nf5 {[%clk 0:01:39]}  Rd8 {[%clk 0:00:51]} 21. h3 {[%clk 0:01:14]}  Ne3+ {[%clk 0:00:47]} 22. Nxe3 {[%clk 0:01:14]}  Bxe3 {[%clk 0:00:48]} 23. Re1 {[%clk 0:01:13]}  Be4 {[%clk 0:00:42]} 24. Qxe3 {[%clk 0:01:13]}  Qxe3 {[%clk 0:00:29]} 25. Rxe3 {[%clk 0:01:13]}  Bxd3 {[%clk 0:00:30]} 26. Ke1 {[%clk 0:01:08]}  Bxb5 {[%clk 0:00:29]} 27. Kf2 {[%clk 0:01:07]}  Nc6 {[%clk 0:00:27]} 28. Rc1 {[%clk 0:00:48]}  f6 {[%clk 0:00:22]} 29. Rc5 {[%clk 0:00:48]}  a6 {[%clk 0:00:22]} 30. Re6 {[%clk 0:00:38]}  Na7 {[%clk 0:00:18]} 31. Re7 {[%clk 0:00:35]}  Nc6 {[%clk 0:00:17]} 32. Rc7 {[%clk 0:00:35]}  Ne5 {[%clk 0:00:14]} 33. Bxe5 {[%clk 0:00:28]}  fxe5 {[%clk 0:00:14]} 34. Rxe5 {[%clk 0:00:29]}  Rd2+ {[%clk 0:00:14]} 35. Nxd2 {[%clk 0:00:29]}  Rf8+ {[%clk 0:00:14]} 36. Ke3 {[%clk 0:00:27]} 1-0


[Site "https://www.chess.com"]

[Event "Titled Tuesday Blitz February 21 Early 2023"]
[White "Rios Escobar, Adan"]
[Black "Arenas, David"]
[WhiteFideId "3403645"]
[BlackFideId "4403177"]
[WhiteElo "2234"]
[BlackElo "2426"]
[Result "0-1"]
[Round "07"]
[TimeControl "180+2"]
[Date "2023.02.21"]
[WhiteClock "0:00:01"]
[BlackClock "0:01:23"]

1. d4 {[%clk 0:02:55]}  Nf6 {[%clk 0:02:59]} 2. g3 {[%clk 0:02:55]}  e6 {[%clk 0:03:00]} 3. c4 {[%clk 0:02:55]}  c5 {[%clk 0:02:57]} 4. d5 {[%clk 0:02:54]}  exd5 {[%clk 0:02:58]} 5. cxd5 {[%clk 0:02:55]}  d6 {[%clk 0:02:56]} 6. Nc3 {[%clk 0:02:55]}  g6 {[%clk 0:02:56]} 7. Nf3 {[%clk 0:02:56]}  Bg7 {[%clk 0:02:57]} 8. Bg2 {[%clk 0:02:57]}  O-O {[%clk 0:02:57]} 9. O-O {[%clk 0:02:57]}  a6 {[%clk 0:02:56]} 10. a4 {[%clk 0:02:57]}  Re8 {[%clk 0:02:55]} 11. Re1 {[%clk 0:02:57]}  Ne4 {[%clk 0:02:53]} 12. Nxe4 {[%clk 0:02:56]}  Rxe4 {[%clk 0:02:54]} 13. Qc2 {[%clk 0:02:56]}  Bf5 {[%clk 0:02:49]} 14. Bh3 {[%clk 0:02:57]}  Qd7 {[%clk 0:02:33]} 15. Qxe4 {[%clk 0:02:53]}  Bxe4 {[%clk 0:02:32]} 16. Bxd7 {[%clk 0:02:53]}  Nxd7 {[%clk 0:02:33]} 17. Rd1 {[%clk 0:02:33]}  h6 {[%clk 0:02:15]} 18. a5 {[%clk 0:02:03]}  Nf6 {[%clk 0:02:12]} 19. Bf4 {[%clk 0:02:00]}  Rd8 {[%clk 0:02:11]} 20. b4 {[%clk 0:01:41]}  Nxd5 {[%clk 0:02:06]} 21. bxc5 {[%clk 0:01:23]}  Bxa1 {[%clk 0:02:02]} 22. Rxa1 {[%clk 0:01:23]}  Nxf4 {[%clk 0:02:01]} 23. gxf4 {[%clk 0:01:23]}  Bxf3 {[%clk 0:02:01]} 24. exf3 {[%clk 0:01:21]}  dxc5 {[%clk 0:02:01]} 25. Rb1 {[%clk 0:01:22]}  Rd7 {[%clk 0:01:58]} 26. f5 {[%clk 0:01:18]}  g5 {[%clk 0:01:57]} 27. f4 {[%clk 0:01:11]}  Kg7 {[%clk 0:01:54]} 28. fxg5 {[%clk 0:01:10]}  hxg5 {[%clk 0:01:55]} 29. Rb6 {[%clk 0:01:04]}  c4 {[%clk 0:01:51]} 30. Rb2 {[%clk 0:00:34]}  Rc7 {[%clk 0:01:42]} 31. f4 {[%clk 0:00:27]}  c3 {[%clk 0:01:38]} 32. Rc2 {[%clk 0:00:26]}  gxf4 {[%clk 0:01:38]} 33. Kf2 {[%clk 0:00:27]}  Kf6 {[%clk 0:01:39]} 34. Kf3 {[%clk 0:00:27]}  Kxf5 {[%clk 0:01:40]} 35. h4 {[%clk 0:00:28]}  Re7 {[%clk 0:01:35]} 36. Rxc3 {[%clk 0:00:04]}  Re5 {[%clk 0:01:34]} 37. Rc7 {[%clk 0:00:03]}  Re3+ {[%clk 0:01:33]} 38. Kf2 {[%clk 0:00:04]}  f6 {[%clk 0:01:32]} 39. Rxb7 {[%clk 0:00:04]}  Ra3 {[%clk 0:01:30]} 40. Rh7 {[%clk 0:00:02]}  Kg4 {[%clk 0:01:29]} 41. h5 {[%clk 0:00:02]}  Ra2+ {[%clk 0:01:28]} 42. Ke1 {[%clk 0:00:02]}  Rxa5 {[%clk 0:01:29]} 43. h6 {[%clk 0:00:02]}  Kf3 {[%clk 0:01:28]} 44. Rf7 {[%clk 0:00:02]}  Rh5 {[%clk 0:01:27]} 45. Rxf6 {[%clk 0:00:02]}  a5 {[%clk 0:01:27]} 46. Ra6 {[%clk 0:00:01]}  Rh1+ {[%clk 0:01:26]} 47. Kd2 {[%clk 0:00:01]}  a4 {[%clk 0:01:25]} 48. Rxa4 {[%clk 0:00:01]}  Rxh6 {[%clk 0:01:25]} 49. Ra3+ {[%clk 0:00:01]}  Kf2 {[%clk 0:01:25]} 50. Rd3 {[%clk 0:00:01]}  f3 {[%clk 0:01:24]} 51. Rd8 {[%clk 0:00:01]}  Re6 {[%clk 0:01:23]} 0-1


[Site "https://www.chess.com"]

[Event "Titled Tuesday Blitz February 21 Early 2023"]
[White "Alinasab, Mobina"]
[Black "Smith, Garrett L"]
[WhiteFideId "12528897"]
[BlackFideId "2024829"]
[WhiteElo "2347"]
[BlackElo "2047"]
[Result "1-0"]
[Round "07"]
[TimeControl "180+2"]
[Date "2023.02.21"]
[WhiteClock "0:01:22"]
[BlackClock "0:00:20"]

1. Nf3 {[%clk 0:03:00]}  c5 {[%clk 0:03:00]} 2. g3 {[%clk 0:03:00]}  Nc6 {[%clk 0:03:00]} 3. d4 {[%clk 0:02:59]}  cxd4 {[%clk 0:03:00]} 4. Nxd4 {[%clk 0:03:00]}  e5 {[%clk 0:02:56]} 5. Nxc6 {[%clk 0:02:58]}  bxc6 {[%clk 0:02:56]} 6. c4 {[%clk 0:02:59]}  Nf6 {[%clk 0:02:55]} 7. Bg2 {[%clk 0:02:59]}  Be7 {[%clk 0:02:44]} 8. Nc3 {[%clk 0:02:58]}  O-O {[%clk 0:02:45]} 9. O-O {[%clk 0:02:57]}  Qc7 {[%clk 0:02:43]} 10. b3 {[%clk 0:02:56]}  d6 {[%clk 0:02:43]} 11. Bb2 {[%clk 0:02:54]}  Be6 {[%clk 0:02:40]} 12. Rc1 {[%clk 0:02:54]}  Rfd8 {[%clk 0:02:39]} 13. Nd5 {[%clk 0:02:53]}  Bxd5 {[%clk 0:02:24]} 14. cxd5 {[%clk 0:02:54]}  c5 {[%clk 0:02:23]} 15. f4 {[%clk 0:02:49]}  exf4 {[%clk 0:02:20]} 16. Rxf4 {[%clk 0:02:50]}  Nd7 {[%clk 0:02:17]} 17. e4 {[%clk 0:02:22]}  Bg5 {[%clk 0:01:55]} 18. Rg4 {[%clk 0:02:14]}  f6 {[%clk 0:01:51]} 19. Rxg5 {[%clk 0:02:07]}  fxg5 {[%clk 0:01:51]} 20. Bh3 {[%clk 0:02:08]}  Ne5 {[%clk 0:01:45]} 21. Be6+ {[%clk 0:02:08]}  Kh8 {[%clk 0:01:45]} 22. Qh5 {[%clk 0:02:08]}  Qe7 {[%clk 0:01:25]} 23. Bf5 {[%clk 0:01:40]}  g6 {[%clk 0:00:52]} 24. Bxg6 {[%clk 0:01:36]}  Qg7 {[%clk 0:00:53]} 25. Bf5 {[%clk 0:01:34]}  Rf8 {[%clk 0:00:41]} 26. Bxe5 {[%clk 0:01:31]}  dxe5 {[%clk 0:00:40]} 27. Rxc5 {[%clk 0:01:31]}  Rae8 {[%clk 0:00:36]} 28. d6 {[%clk 0:01:30]}  Qb7 {[%clk 0:00:20]} 29. Rc7 {[%clk 0:01:22]} 1-0


[Site "https://www.chess.com"]

[Event "Titled Tuesday Blitz February 21 Early 2023"]
[White "Santos Flores, Alberto"]
[Black "Gharamian, Tigran"]
[WhiteFideId "3601234"]
[BlackFideId "13301527"]
[WhiteElo "2164"]
[BlackElo "2601"]
[Result "1-0"]
[Round "07"]
[TimeControl "180+2"]
[Date "2023.02.21"]
[WhiteClock "0:00:15"]
[BlackClock "0:00:04"]

1. e4 {[%clk 0:03:00]}  c6 {[%clk 0:02:58]} 2. d4 {[%clk 0:03:00]}  d5 {[%clk 0:02:59]} 3. Nc3 {[%clk 0:03:00]}  dxe4 {[%clk 0:02:59]} 4. Nxe4 {[%clk 0:03:01]}  Nf6 {[%clk 0:03:00]} 5. Nxf6+ {[%clk 0:03:01]}  exf6 {[%clk 0:03:01]} 6. c3 {[%clk 0:03:01]}  Bd6 {[%clk 0:03:01]} 7. Bd3 {[%clk 0:03:02]}  O-O {[%clk 0:03:01]} 8. Ne2 {[%clk 0:03:02]}  Re8 {[%clk 0:03:01]} 9. O-O {[%clk 0:03:02]}  Nd7 {[%clk 0:03:00]} 10. Ng3 {[%clk 0:03:03]}  Nf8 {[%clk 0:02:55]} 11. Qh5 {[%clk 0:03:03]}  g6 {[%clk 0:02:47]} 12. Qh6 {[%clk 0:03:03]}  f5 {[%clk 0:02:19]} 13. Bg5 {[%clk 0:03:01]}  Be7 {[%clk 0:02:19]} 14. h4 {[%clk 0:03:02]}  Ne6 {[%clk 0:02:11]} 15. Bxe7 {[%clk 0:02:55]}  Qxe7 {[%clk 0:02:09]} 16. Rae1 {[%clk 0:02:41]}  Bd7 {[%clk 0:02:02]} 17. Bxf5 {[%clk 0:02:08]}  Qf8 {[%clk 0:01:30]} 18. Qxf8+ {[%clk 0:02:06]}  Kxf8 {[%clk 0:01:27]} 19. Bc2 {[%clk 0:01:59]}  Nf4 {[%clk 0:01:14]} 20. Re3 {[%clk 0:01:53]}  Nd5 {[%clk 0:01:08]} 21. Re5 {[%clk 0:01:39]}  f6 {[%clk 0:01:07]} 22. Rxe8+ {[%clk 0:01:39]}  Rxe8 {[%clk 0:01:08]} 23. h5 {[%clk 0:01:38]}  Kg7 {[%clk 0:01:05]} 24. hxg6 {[%clk 0:01:37]}  hxg6 {[%clk 0:01:05]} 25. Rd1 {[%clk 0:01:33]}  f5 {[%clk 0:00:56]} 26. Kf1 {[%clk 0:01:30]}  Nf4 {[%clk 0:00:53]} 27. Rd2 {[%clk 0:01:20]}  Be6 {[%clk 0:00:47]} 28. Bb3 {[%clk 0:01:19]}  Kf6 {[%clk 0:00:29]} 29. Ne2 {[%clk 0:01:16]}  Nd5 {[%clk 0:00:24]} 30. g3 {[%clk 0:01:08]}  g5 {[%clk 0:00:19]} 31. Ng1 {[%clk 0:01:03]}  Rh8 {[%clk 0:00:18]} 32. Nf3 {[%clk 0:00:57]}  a5 {[%clk 0:00:17]} 33. Ne5 {[%clk 0:00:54]}  Rh1+ {[%clk 0:00:14]} 34. Kg2 {[%clk 0:00:54]}  Rb1 {[%clk 0:00:14]} 35. Re2 {[%clk 0:00:47]}  Bg8 {[%clk 0:00:10]} 36. Nd7+ {[%clk 0:00:45]}  Kg6 {[%clk 0:00:08]} 37. Nc5 {[%clk 0:00:36]}  b6 {[%clk 0:00:06]} 38. Nd7 {[%clk 0:00:36]}  b5 {[%clk 0:00:06]} 39. a4 {[%clk 0:00:25]}  Nf4+ {[%clk 0:00:04]} 40. gxf4 {[%clk 0:00:25]}  Bxb3 {[%clk 0:00:04]} 41. axb5 {[%clk 0:00:23]}  cxb5 {[%clk 0:00:05]} 42. fxg5 {[%clk 0:00:23]}  Kxg5 {[%clk 0:00:04]} 43. Ne5 {[%clk 0:00:18]}  a4 {[%clk 0:00:03]} 44. Rd2 {[%clk 0:00:15]}  Re1 {[%clk 0:00:02]} 45. Nf3+ {[%clk 0:00:14]}  Kf4 {[%clk 0:00:03]} 46. Nxe1 {[%clk 0:00:14]}  Kg5 {[%clk 0:00:04]} 47. Nf3+ {[%clk 0:00:14]}  Kf4 {[%clk 0:00:04]} 48. d5 {[%clk 0:00:15]} 1-0


[Site "https://www.chess.com"]

[Event "Titled Tuesday Blitz February 21 Early 2023"]
[White "MunichMouse"]
[Black "Turzo, Attila"]
[BlackFideId "704954"]
[WhiteElo "2296"]
[BlackElo "2279"]
[Result "0-1"]
[Round "07"]
[TimeControl "180+2"]
[Date "2023.02.21"]
[WhiteClock "0:00:01"]
[BlackClock "0:00:07"]

1. d4 {[%clk 0:03:00]}  Nf6 {[%clk 0:02:59]} 2. c4 {[%clk 0:03:00]}  e6 {[%clk 0:02:59]} 3. Nf3 {[%clk 0:03:00]}  d5 {[%clk 0:02:58]} 4. g3 {[%clk 0:02:59]}  Be7 {[%clk 0:02:57]} 5. Bg2 {[%clk 0:02:58]}  O-O {[%clk 0:02:58]} 6. Qc2 {[%clk 0:02:56]}  Nbd7 {[%clk 0:02:57]} 7. O-O {[%clk 0:02:56]}  c6 {[%clk 0:02:56]} 8. b3 {[%clk 0:02:56]}  b6 {[%clk 0:02:57]} 9. Nbd2 {[%clk 0:02:56]}  Ba6 {[%clk 0:02:57]} 10. e4 {[%clk 0:02:56]}  Rc8 {[%clk 0:02:55]} 11. Re1 {[%clk 0:02:54]}  c5 {[%clk 0:02:51]} 12. exd5 {[%clk 0:02:45]}  exd5 {[%clk 0:02:50]} 13. Bb2 {[%clk 0:02:45]}  dxc4 {[%clk 0:02:37]} 14. bxc4 {[%clk 0:02:44]}  cxd4 {[%clk 0:02:37]} 15. Nxd4 {[%clk 0:02:44]}  Bb4 {[%clk 0:02:19]} 16. Nc6 {[%clk 0:02:31]}  Rxc6 {[%clk 0:02:10]} 17. Bxc6 {[%clk 0:02:32]}  Nb8 {[%clk 0:02:10]} 18. Bd5 {[%clk 0:02:10]}  Nxd5 {[%clk 0:02:07]} 19. cxd5 {[%clk 0:02:11]}  Qxd5 {[%clk 0:02:07]} 20. Rad1 {[%clk 0:01:46]}  Bb7 {[%clk 0:01:55]} 21. Ne4 {[%clk 0:01:41]}  Qh5 {[%clk 0:01:39]} 22. Re3 {[%clk 0:01:36]}  Rc8 {[%clk 0:01:23]} 23. Qb3 {[%clk 0:01:34]}  Bf8 {[%clk 0:01:12]} 24. h4 {[%clk 0:01:10]}  Bc6 {[%clk 0:00:55]} 25. Rc1 {[%clk 0:00:32]}  Rd8 {[%clk 0:00:44]} 26. Qc3 {[%clk 0:00:20]}  Qg6 {[%clk 0:00:32]} 27. Kh1 {[%clk 0:00:20]}  Bxe4+ {[%clk 0:00:30]} 28. Kh2 {[%clk 0:00:20]}  Bd5 {[%clk 0:00:25]} 29. Re5 {[%clk 0:00:19]}  Be6 {[%clk 0:00:16]} 30. Rg5 {[%clk 0:00:19]}  Qh6 {[%clk 0:00:17]} 31. Re1 {[%clk 0:00:15]}  Nd7 {[%clk 0:00:15]} 32. Rd1 {[%clk 0:00:14]}  Re8 {[%clk 0:00:15]} 33. Rd6 {[%clk 0:00:13]}  Nc5 {[%clk 0:00:11]} 34. Qe3 {[%clk 0:00:07]}  Bxd6 {[%clk 0:00:10]} 35. Rxg7+ {[%clk 0:00:05]}  Qxg7 {[%clk 0:00:11]} 36. Bxg7 {[%clk 0:00:04]}  Kxg7 {[%clk 0:00:12]} 37. Qg5+ {[%clk 0:00:04]}  Kf8 {[%clk 0:00:12]} 38. Qh6+ {[%clk 0:00:05]}  Kg8 {[%clk 0:00:12]} 39. Qg5+ {[%clk 0:00:05]}  Kf8 {[%clk 0:00:12]} 40. Qh6+ {[%clk 0:00:05]}  Ke7 {[%clk 0:00:13]} 41. Qxh7 {[%clk 0:00:06]}  Kd7 {[%clk 0:00:13]} 42. Qc2 {[%clk 0:00:05]}  Kc7 {[%clk 0:00:13]} 43. a4 {[%clk 0:00:06]}  Bd5 {[%clk 0:00:12]} 44. Kh3 {[%clk 0:00:03]}  Kb7 {[%clk 0:00:11]} 45. h5 {[%clk 0:00:04]}  Be4 {[%clk 0:00:10]} 46. Qd2 {[%clk 0:00:03]}  f5 {[%clk 0:00:10]} 47. Qh6 {[%clk 0:00:02]}  Bc7 {[%clk 0:00:10]} 48. Qg7 {[%clk 0:00:02]}  Ne6 {[%clk 0:00:09]} 49. Qf6 {[%clk 0:00:01]}  Bd8 {[%clk 0:00:07]} 0-1


[Site "https://www.chess.com"]

[Event "Titled Tuesday Blitz February 21 Early 2023"]
[White "Afanasieva, Alexandra"]
[Black "Deng, Henry"]
[WhiteFideId "34126926"]
[BlackFideId "30965454"]
[WhiteElo "1857"]
[BlackElo "2168"]
[Result "1-0"]
[Round "07"]
[TimeControl "180+2"]
[Date "2023.02.21"]
[WhiteClock "0:00:14"]
[BlackClock "0:01:00"]

1. e4 {[%clk 0:02:58]}  c5 {[%clk 0:02:59]} 2. Nf3 {[%clk 0:02:58]}  e6 {[%clk 0:02:59]} 3. d4 {[%clk 0:02:57]}  cxd4 {[%clk 0:03:00]} 4. Nxd4 {[%clk 0:02:58]}  Nf6 {[%clk 0:03:00]} 5. Nc3 {[%clk 0:02:59]}  Nc6 {[%clk 0:03:01]} 6. Nxc6 {[%clk 0:02:58]}  bxc6 {[%clk 0:03:00]} 7. e5 {[%clk 0:02:58]}  Nd5 {[%clk 0:03:01]} 8. Ne4 {[%clk 0:02:52]}  Bb7 {[%clk 0:02:58]} 9. c4 {[%clk 0:02:46]}  Nb4 {[%clk 0:02:56]} 10. Bd2 {[%clk 0:02:26]}  Qa5 {[%clk 0:02:44]} 11. c5 {[%clk 0:02:01]}  Bxc5 {[%clk 0:02:04]} 12. a3 {[%clk 0:01:59]}  Bxf2+ {[%clk 0:01:44]} 13. Kxf2 {[%clk 0:01:46]}  Qxe5 {[%clk 0:01:44]} 14. Bxb4 {[%clk 0:00:57]}  Qxe4 {[%clk 0:01:41]} 15. Qd6 {[%clk 0:00:45]}  Qh4+ {[%clk 0:01:34]} 16. Qg3 {[%clk 0:00:26]}  Qf6+ {[%clk 0:01:28]} 17. Qf3 {[%clk 0:00:26]}  Qxf3+ {[%clk 0:01:27]} 18. gxf3 {[%clk 0:00:25]}  f6 {[%clk 0:01:26]} 19. Rd1 {[%clk 0:00:23]}  O-O-O {[%clk 0:01:24]} 20. Bd6 {[%clk 0:00:20]}  e5 {[%clk 0:01:16]} 21. Rg1 {[%clk 0:00:17]}  g6 {[%clk 0:01:12]} 22. Bh3 {[%clk 0:00:17]}  e4 {[%clk 0:01:07]} 23. Be7 {[%clk 0:00:14]}  Rdg8 {[%clk 0:01:00]} 24. Bxf6 {[%clk 0:00:13]}  Rf8 {[%clk 0:00:59]} 25. Bxd7+ {[%clk 0:00:10]}  Kc7 {[%clk 0:00:58]} 26. Bxh8 {[%clk 0:00:11]}  Rxf3+ {[%clk 0:00:59]} 27. Ke1 {[%clk 0:00:11]}  c5 {[%clk 0:01:00]} 28. Be5+ {[%clk 0:00:09]}  Kb6 {[%clk 0:00:59]} 29. Rd6+ {[%clk 0:00:09]}  Ka5 {[%clk 0:00:59]} 30. Bc3+ {[%clk 0:00:10]}  Rxc3 {[%clk 0:00:53]} 31. bxc3 {[%clk 0:00:11]}  e3 {[%clk 0:00:51]} 32. Bc6 {[%clk 0:00:11]}  Ba6 {[%clk 0:00:51]} 33. Rg3 {[%clk 0:00:11]}  e2 {[%clk 0:00:51]} 34. Bf3 {[%clk 0:00:12]}  Bc4 {[%clk 0:00:51]} 35. Bxe2 {[%clk 0:00:12]}  Bb3 {[%clk 0:00:51]} 36. c4 {[%clk 0:00:12]}  Ka4 {[%clk 0:00:52]} 37. Rxb3 {[%clk 0:00:12]}  Kxb3 {[%clk 0:00:52]} 38. Ra6 {[%clk 0:00:13]}  Kb2 {[%clk 0:00:52]} 39. Rxa7 {[%clk 0:00:14]}  Kb3 {[%clk 0:00:53]} 40. Rxh7 {[%clk 0:00:13]}  g5 {[%clk 0:00:54]} 41. Rg7 {[%clk 0:00:14]}  g4 {[%clk 0:00:55]} 42. Rxg4 {[%clk 0:00:15]}  Kxa3 {[%clk 0:00:55]} 43. h4 {[%clk 0:00:15]}  Kb3 {[%clk 0:00:56]} 44. Kd2 {[%clk 0:00:15]}  Kb2 {[%clk 0:00:57]} 45. Rg8 {[%clk 0:00:15]}  Kb3 {[%clk 0:00:58]} 46. Rb8+ {[%clk 0:00:15]}  Ka3 {[%clk 0:00:59]} 47. Kc3 {[%clk 0:00:13]}  Ka2 {[%clk 0:01:00]} 48. Bd3 {[%clk 0:00:14]}  Ka1 {[%clk 0:01:00]} 49. Ra8# {[%clk 0:00:14]} 1-0


[Site "https://www.chess.com"]

[Event "Titled Tuesday Blitz February 21 Early 2023"]
[White "Kokoszczynski, Jan"]
[Black "Bogaudinov, Rushan"]
[WhiteFideId "1174460"]
[BlackFideId "4129288"]
[WhiteElo "2247"]
[BlackElo "1939"]
[Result "1-0"]
[Round "07"]
[TimeControl "180+2"]
[Date "2023.02.21"]
[WhiteClock "0:01:25"]
[BlackClock "0:02:01"]

1. e4 {[%clk 0:03:00]}  c5 {[%clk 0:02:59]} 2. Nf3 {[%clk 0:02:59]}  Nc6 {[%clk 0:02:59]} 3. d4 {[%clk 0:02:59]}  cxd4 {[%clk 0:03:00]} 4. Nxd4 {[%clk 0:02:59]}  g6 {[%clk 0:02:56]} 5. c4 {[%clk 0:02:57]}  Bg7 {[%clk 0:02:56]} 6. Be3 {[%clk 0:02:57]}  d6 {[%clk 0:02:55]} 7. Nc3 {[%clk 0:02:55]}  Nf6 {[%clk 0:02:54]} 8. Be2 {[%clk 0:02:51]}  O-O {[%clk 0:02:53]} 9. O-O {[%clk 0:02:47]}  Bd7 {[%clk 0:02:53]} 10. f3 {[%clk 0:02:45]}  Nxd4 {[%clk 0:02:53]} 11. Bxd4 {[%clk 0:02:45]}  Bc6 {[%clk 0:02:54]} 12. Qd2 {[%clk 0:02:44]}  Nd7 {[%clk 0:02:53]} 13. Be3 {[%clk 0:02:42]}  a6 {[%clk 0:02:48]} 14. Rfc1 {[%clk 0:02:39]}  Rc8 {[%clk 0:02:41]} 15. Rab1 {[%clk 0:02:39]}  h5 {[%clk 0:02:31]} 16. b4 {[%clk 0:02:22]}  Ne5 {[%clk 0:02:22]} 17. Nd5 {[%clk 0:02:23]}  Bxd5 {[%clk 0:02:12]} 18. cxd5 {[%clk 0:02:22]}  b5 {[%clk 0:02:12]} 19. a4 {[%clk 0:02:04]}  Qd7 {[%clk 0:02:02]} 20. axb5 {[%clk 0:01:49]}  axb5 {[%clk 0:02:01]} 21. h3 {[%clk 0:01:25]} 1-0


[Site "https://www.chess.com"]

[Event "Titled Tuesday Blitz February 21 Early 2023"]
[White "Reprintsev, Alexander"]
[Black "Lauridsen, Jesper Morch"]
[WhiteFideId "14100541"]
[BlackFideId "1401890"]
[WhiteElo "2253"]
[BlackElo "2309"]
[Result "1-0"]
[Round "07"]
[TimeControl "180+2"]
[Date "2023.02.21"]
[WhiteClock "0:00:51"]
[BlackClock "0:00:06"]

1. e4 {[%clk 0:02:59]}  c5 {[%clk 0:02:58]} 2. b3 {[%clk 0:02:58]}  Nc6 {[%clk 0:02:55]} 3. Bb2 {[%clk 0:02:58]}  e5 {[%clk 0:02:55]} 4. f4 {[%clk 0:02:58]}  d6 {[%clk 0:02:54]} 5. Qf3 {[%clk 0:02:58]}  exf4 {[%clk 0:02:53]} 6. Qxf4 {[%clk 0:02:55]}  Nge7 {[%clk 0:02:49]} 7. Bb5 {[%clk 0:02:49]}  Ng6 {[%clk 0:02:45]} 8. Bxc6+ {[%clk 0:02:48]}  bxc6 {[%clk 0:02:44]} 9. Qe3 {[%clk 0:02:45]}  Be7 {[%clk 0:02:42]} 10. Bxg7 {[%clk 0:02:44]}  Rg8 {[%clk 0:02:40]} 11. Bc3 {[%clk 0:02:43]}  Bg5 {[%clk 0:02:40]} 12. Qf2 {[%clk 0:02:35]}  Nf4 {[%clk 0:02:40]} 13. g3 {[%clk 0:02:25]}  Bg4 {[%clk 0:02:07]} 14. h4 {[%clk 0:02:02]}  Qe7 {[%clk 0:02:07]} 15. e5 {[%clk 0:01:54]}  Nd5 {[%clk 0:01:32]} 16. hxg5 {[%clk 0:01:49]}  Nxc3 {[%clk 0:01:32]} 17. Nxc3 {[%clk 0:01:49]}  Qxe5+ {[%clk 0:01:32]} 18. Nge2 {[%clk 0:01:47]}  O-O-O {[%clk 0:01:27]} 19. O-O-O {[%clk 0:01:46]}  Rde8 {[%clk 0:01:25]} 20. Rde1 {[%clk 0:01:41]}  Qxg5 {[%clk 0:01:02]} 21. Nf4 {[%clk 0:01:40]}  Re5 {[%clk 0:00:47]} 22. Rxe5 {[%clk 0:01:37]}  Qxe5 {[%clk 0:00:43]} 23. Re1 {[%clk 0:01:33]}  Qf6 {[%clk 0:00:44]} 24. Qe3 {[%clk 0:01:29]}  h5 {[%clk 0:00:40]} 25. Qe4 {[%clk 0:01:26]}  Kd7 {[%clk 0:00:34]} 26. Kb1 {[%clk 0:01:13]}  Bf5 {[%clk 0:00:31]} 27. Nxh5 {[%clk 0:01:06]}  Qg6 {[%clk 0:00:24]} 28. Qe7+ {[%clk 0:01:05]}  Kc8 {[%clk 0:00:25]} 29. Nf6 {[%clk 0:01:02]}  Bxc2+ {[%clk 0:00:14]} 30. Kb2 {[%clk 0:01:02]}  Rd8 {[%clk 0:00:15]} 31. Nfe4 {[%clk 0:00:57]}  Bxe4 {[%clk 0:00:11]} 32. Rxe4 {[%clk 0:00:57]}  Qxg3 {[%clk 0:00:10]} 33. Qxa7 {[%clk 0:00:55]}  Qh2 {[%clk 0:00:06]} 34. Qa8+ {[%clk 0:00:51]}  Kd7 {[%clk 0:00:06]} 35. Qb7# {[%clk 0:00:51]} 1-0


[Site "https://www.chess.com"]